Cogmind - Beta 15 @@@ ROGUE MODE // 2025.05.14 @ 12:29:39 Player: celerysam Result: Destroyed by 6R-EDU(R) with Subdweller Laser Performance ------------- Evolutions (0) 0 Regions Visited (2) 400 Robots Destroyed (20) 100 Value Destroyed (497) 497 Prototype IDs (0) 0 Alien Tech Used (0) 0 Bonus (0) 0 TOTAL SCORE: 997 Bonus ------- None Cogmind --------- Core Integrity 0/250 Matter 225/300 Energy 99/100 System Corruption 0% Temperature Cool (6) Movement Core (200) Ox3 Location -10/Subcaves Parts ------- > --- POWER (1) -------- (None) > --- PROPULSION (2) --- (None) > --- UTILITY (2) ------ Medium Storage Unit > --- WEAPON (2) ------- Assault Rifle > --- INVENTORY (10) --- Ion Engine Light Nuclear Core Light Treads Light Treads Wheel Compact Wheel Improved Heat Sink ECM Suite Hacking Suite Peak State ------------ > --- POWER ------------ Light Nuclear Core > --- PROPULSION ------- Wheel Wheel > --- UTILITY ---------- Improved Heat Sink Medium Storage Unit > --- WEAPON ----------- EM Pulse Gun Light Cannon > --- INVENTORY -------- Ion Engine Light Nuclear Core Light Treads Light Treads Light Treads Wheel Compact Wheel Improved Heat Sink ECM Suite [Rating: 12] Favorites ----------- Power Light Ion Engine Engine Light Ion Engine Power Core Light Nuclear Core Propulsion Aluminum Leg Leg Aluminum Leg Wheel Wheel Utility Medium Storage Unit Device Improved Heat Sink Storage Medium Storage Unit Protection Light Armor Plating Weapon EM Pulse Gun Energy Gun EM Pulse Gun Ballistic Gun Assault Rifle Ballistic Cannon Light Cannon Build | -11 -10 -10 ------- Run | Yrd Mat Sub Slots Evolved . | . . . Power . | . . . Propulsion . | . . . Utility . | . . . Weapon . | . . . Parts Attached 20 | 6 13 1 Power 3 | 1 2 . Engine 2 | 1 1 . Core 1 | . 1 . Reactor . | . . . Propulsion 5 | 2 3 . Treads . | . . . Leg 2 | 2 . . Wheel 3 | . 3 . Hover . | . . . Flight . | . . . Utility 6 | 1 5 . Device 2 | . 2 . Storage 2 | 1 1 . Processor . | . . . Hackware . | . . . Protection 2 | . 2 . Artifact . | . . . Weapon 6 | 2 3 1 Energy Gun 2 | 1 1 . Energy Cannon . | . . . Ballistic Gun 2 | 1 . 1 Ballistic Cannon 2 | . 2 . Launcher . | . . . Special Weapon . | . . . Impact Weapon . | . . . Slashing Weapon . | . . . Piercing Weapon . | . . . Special Melee Weapon . | . . . Unidentified Prototypes . | . . . Parts Lost 8 | . 2 6 Power 1 | . . 1 Propulsion 2 | . . 2 Utility 2 | . 1 1 Weapon 3 | . 1 2 Highest Loss Streak 6 | . 2 6 To Critical Strikes . | . . . Average Backups 9 | 4 9 9 Power 2 | . 2 2 Propulsion 4 | 3 4 4 Utility 1 | . 1 3 Weapon 1 | . 1 . Tool/Special . | . . . Unused Backups 12 | . 4 8 Power 3 | . 1 2 Propulsion 5 | . 1 4 Utility 2 | . . 2 Weapon 2 | . 2 . Tool/Special . | . . . Average Slot Usage (%) 97 | . 98 76 Engine 8 | . 8 . Core 5 | . 5 11 Leg 14 | . 14 . Wheel 13 | . 13 19 Device 2 | . 2 . Storage 14 | . 14 14 Protection 9 | . 9 5 Energy Gun 11 | . 11 5 Ballistic Gun 8 | . 8 8 Ballistic Cannon 8 | . 8 11 Peak Build Rating 12 | 6 12 10 Average Rating 8 | 4 9 7 On Entrance 5 | . 6 10 Naked Turns . | . . . Heaviest Build 23 | 12 23 23 Greatest Support 20 | 20 20 20 Greatest Overweight (x) 3 | . 2 3 Average Overweight (x) . | . . 1 Largest Inventory Capacity 10 | 8 10 10 Average Capacity 9 | 6 9 10 Most Carried 10 | 6 10 10 Average Carried 9 | 5 9 9 Final Capacity 10 | 8 10 10 Final Carried 10 | 6 10 9 Class Distribution -------------------- 87% | Mutant 12% | Scavenger-Mutant Dominant Class ---------------- Mutant | -10/Materials Mutant | -10/Subcaves Resources | -11 -10 -10 ----------- Run | Yrd Mat Sub Matter Collected 632 | 210 422 . Remotely . | . . . Salvage Created 668 | . 668 . Parts 43 | . 43 . Haulers Intercepted 1 | . 1 . Recyclers Shooed . | . . . Parts Field Recycled . | . . . Retrieved Matter . | . . . Parts Self-Destructed . | . . . Prevented . | . . . Kills | -11 -10 -10 ------- Run | Yrd Mat Sub Combat Hostiles Destroyed 14 | . 14 . Guns 9 | . 9 . Cannons 4 | . 4 . AOE 1 | . 1 . Classes Destroyed 6 | . 6 . Worker 1 | . 1 . Hauler 1 | . 1 . Operator 1 | . 1 . Watcher 3 | . 3 . Swarmer 3 | . 3 . Grunt 11 | . 11 . Best Kill Streak 4 | . 4 . Combat Bots Only 3 | . 3 . Max Kills in Single Turn 1 | . 1 . Gunslinging . | . . . Exploded 1 | . 1 . Melee . | . . . Uniques/NPCs Destroyed . | . . . Combat | -11 -10 -10 -------- Run | Yrd Mat Sub Hostile Shots Fired 128 | . 92 36 Missed 36 | . 25 11 Hits 92 | . 67 25 Projectile 92 | . 67 25 Critical Strikes 2 | . . 2 Damage Taken 1239 | . 719 520 Core 258 | . 114 144 Absorbed by Shields . | . . . Core Remaining (%) 100 | 100 . . Volleys Fired 81 | . 65 16 Largest 2 | . 2 2 Hottest 70 | . 70 70 Shots Fired 145 | . 122 23 Gun 99 | . 84 15 Cannon 46 | . 38 8 Launcher . | . . . Special . | . . . Kinetic 97 | . 78 19 Thermal . | . . . Explosive . | . . . Electromagnetic 48 | . 44 4 Robot Hit Streak 14 | . 14 7 Robot Miss Streak 2 | . 2 2 Penetration Max . | . . . Secondary Targets 1 | . 1 . Max Gunslinging Chain 1 | . 1 . Shots Hit Robots 76 | . 58 18 Core Hits 30 | . 29 1 Critical Kills . | . . . Critical Parts Destroyed . | . . . Critical Strikes 2 | . 2 . Blast 1 | . 1 . Corrupt 1 | . 1 . Melee Attacks . | . . . Impact . | . . . Slashing . | . . . Piercing . | . . . Sneak Attacks . | . . . Combat Hostiles . | . . . Follow-up Attacks . | . . . Damage Inflicted 1029 | . 898 131 Guns 689 | . 594 95 Cannons 313 | . 277 36 Explosions 27 | . 27 . Melee . | . . . Ramming . | . . . Kinetic 674 | . 555 119 Thermal 27 | . 27 . Explosive . | . . . Electromagnetic 328 | . 316 12 Impact . | . . . Slashing . | . . . Piercing . | . . . Highest Corruption . | . . . Average Corruption . | . . . Corruption Purged . | . . . Corruption Blocked . | . . . Overload Shots . | . . . Overflow Damage 10 | . 10 . Projectiles 10 | . 10 . Explosions . | . . . Melee . | . . . Knockbacks 5 | . 4 1 Impact . | . . . Kinetic 5 | . 4 1 Secondary . | . . . Self-Inflicted Damage . | . . . Shots . | . . . Rammed . | . . . Targets Rammed . | . . . Kicked . | . . . Crushed . | . . . Highest Temperature 68 | . 68 . Average Temperature 23 | . 23 . Received Heat Transfer 507 | . 357 150 Siege Activations . | . . . Martial Activations . | . . . Shielding Activations . | . . . Robots Disrupted . | . . . Combat Hostiles . | . . . Robots Corrupted . | . . . Combat Hostiles . | . . . Parts Fried . | . . . Impact Corruptions . | . . . Robots Melted . | . . . Combat Hostiles . | . . . Parts Melted . | . . . Heat Transferred 50 | . 50 . Parts Sabotaged . | . . . Parts Stolen . | . . . Parts Stripped . | . . . Power Chain Reactions 1 | . 1 . Alert | -11 -10 -10 ------- Run | Yrd Mat Sub Maximum Alert Level . | . . . Low Security (%) 100 | 100 100 . Level 1 . | . . . Level 2 . | . . . Level 3 . | . . . Level 4 . | . . . Level 5 . | . . . High Security . | . . . Max Security . | . . . Peak Influence 115 | . 115 . Initial . | . . . Average 34 | . 36 . Influence Increases 420 | . 420 . Destroy 0b10 Robot/C 280 | . 280 . Destroy 0b10 Robot/NC 35 | . 35 . Destroy Leader 58 | . 58 . Destroy Structure 2 | . 2 . Lose Combat Pursuer 45 | . 45 . Influence Decreases 420 | . 394 26 Entered New Map 14 | . . 14 Time Decay 374 | . 374 . Lost Part 32 | . 20 12 Squads Dispatched 3 | . 3 . Investigation 2 | . 2 . Extermination . | . . . Reinforcement 1 | . 1 . Assault . | . . . Garrison . | . . . Intercept . | . . . Searches Triggered . | . . . Construction Impeded . | . . . Haulers Reinforced . | . . . Active Scanning Responses . | . . . Cargo Convoy Interrupts . | . . . Stealth | -11 -10 -10 --------- Run | Yrd Mat Sub Distress Signals . | . . . Communications Jammed . | . . . Distress Signals . | . . . Times Spotted 25 | . 23 2 Peak Tracking Total 3 | . 3 2 Tactical Retreats 3 | . 3 . Traps | -11 -10 -10 ------- Run | Yrd Mat Sub Traps Triggered 2 | . 2 . Indirectly . | . . . Trap Hack Attempts . | . . . Triggered . | . . . Disarmed . | . . . Reprogrammed . | . . . Reused . | . . . Traps Extracted . | . . . Installed . | . . . Triggered . | . . . Machines | -11 -10 -10 ---------- Run | Yrd Mat Sub Machines Disabled . | . . . Max in Single Turn . | . . . Machines Repaired . | . . . Machines Dismantled . | . . . Machines Sabotaged . | . . . Overloaded Fab Kills . | . . . Hacking | -11 -10 -10 --------- Run | Yrd Mat Sub Machines Accessed 5 | . 5 . Terminals 5 | . 5 . Fabricators . | . . . Repair Stations . | . . . Recycling Units . | . . . Scanalyzers . | . . . Garrison Access . | . . . Total Hacks 8 | . 8 . Successful 4 | . 4 . Failed 4 | . 4 . Catastrophic . | . . . Database Lockouts . | . . . Manual 4 | . 4 . Terminals 8 | . 8 . Fabricators . | . . . Repair Stations . | . . . Recycling Units . | . . . Scanalyzers . | . . . Garrison Access . | . . . Terminal Hacks 2 | . 2 . Record 1 | . 1 . Robot Analysis 1 | . 1 . Fabricator Hacks . | . . . Repair Station Hacks . | . . . Recycling Unit Hacks . | . . . Scanalyzer . | . . . Garrison Access Hacks . | . . . Unauthorized Hacks 2 | . 2 . Terminals 2 | . 2 . Botnet 2 | . 2 . Fabricators . | . . . Repair Stations . | . . . Recycling Units . | . . . Scanalyzers . | . . . Garrison Access . | . . . Data Cores Recovered 1 | . 1 . Used . | . . . Hacking Detections 1 | . 1 . Full Trace Events . | . . . Feedback Events . | . . . Feedback Blocked . | . . . Robot Schematics Acquired . | . . . Robots Built . | . . . Authchips . | . . . Time . | . . . Total Robot Build Rating . | . . . Part Schematics Acquired . | . . . Parts Built . | . . . Authchips . | . . . Time . | . . . Total Part Build Rating . | . . . Parts Repaired . | . . . Time . | . . . Parts Recycled . | . . . Recycled Matter . | . . . Retrieved Matter . | . . . Retrieved Components . | . . . Parts Scanalyzed . | . . . Part Schematics Acquired . | . . . Parts Damaged . | . . . Bothacking | -11 -10 -10 ------------ Run | Yrd Mat Sub Used RIF Installer . | . . . Robots Hacked . | . . . Non-combat . | . . . Combat . | . . . Robot Hacks Applied . | . . . Relay Couplers Released . | . . . Fabnet Peak Effective % . | . . . Robots Rewired . | . . . Allies Hacked . | . . . Hacks Repelled . | . . . Allies | -11 -10 -10 -------- Run | Yrd Mat Sub Total Allies . | . . . Largest Group . | . . . Highest-Rated Group . | . . . Highest-Rated Ally . | . . . Total Orders . | . . . Ally Attacks . | . . . Total Damage . | . . . Kills . | . . . Allies Corrupted . | . . . Allies Melted . | . . . Intel | -11 -10 -10 ------- Run | Yrd Mat Sub Active Infowar (turns) . | . . . Robot Analysis Total 1 | . 1 . Derelict Logs Recovered . | . . . Drone Launches . | . . . Drone Recoveries . | . . . Exploration | -11 -10 -10 ------------- Run | Yrd Mat Sub Turns Passed 1428 | 66 1313 49 Spaces Moved 991 | 51 930 10 Core 14 | 13 . 1 Treads . | . . . Legs 441 | 38 403 . Wheels 536 | . 527 9 Hover . | . . . Flight . | . . . Fastest Speed 50 | 50 80 80 Average Speed 109 | 102 109 104 Slowest Speed 200 | 120 190 200 Overloaded Moves . | . . . Propulsion Burnouts . | . . . Robots Hopped . | . . . Potential Cave-ins . | . . . Cave-ins Triggered . | . . . Exploration Rate (%) 34 | 4 97 2 Regions Visited 2 Branch Regions 1 Pre-discovered Areas . | . . . Known Exits Taken . | . . . Unknown Exits Taken 2 | 1 1 . Scrap Searched . | . . . Spaces Dug . | . . . Terrain Destroyed . | . . . Melee . | . . . Projectile . | . . . AOE . | . . . Terrain Rammed . | . . . Walls Destroyed . | . . . Machines Disabled . | . . . Actions | -11 -10 -10 --------- Run | Yrd Mat Sub Total 1194 | 62 1105 27 Wait 71 | . 71 . Move 989 | 50 929 10 Hop . | . . . Pick Up 18 | 6 12 . Fast Attach 10 | 6 4 . Attach 3 | . 2 1 Detach 1 | . 1 . Swap 8 | . 8 . Drop 13 | . 13 . Fire 81 | . 65 16 Melee . | . . . Ram . | . . . Kick . | . . . Crush . | . . . Escape Stasis . | . . . Rewire . | . . . Trap . | . . . Miscellaneous . | . . . Route ------- -11/Scrapyard -10/Materials (discovered 6 exits: [*Mat x3] / [*Min x2] / [*Sub]) -10/Subcaves History --------- Turn | Location | Event 9 | -11/Scrapyard | Discovered new exit (range 15) 67 | -11/Scrapyard | Entered Materials 307 | -10/Materials | Build established: Mutant 362 | -10/Materials | Discovered new exit (range 4) 452 | -10/Materials | Discovered new exit (range 9) 510 | -10/Materials | Discovered new exit (range 6) 865 | -10/Materials | Discovered new exit (range 16) 971 | -10/Materials | Discovered new exit (range 11) 1105 | -10/Materials | Discovered new exit (range 7) 1380 | -10/Materials | Entered Subcaves 1381 | -10/Subcaves | Approached by a straggling Scientist 1412 | -10/Subcaves | Core integrity fell below 50% 1428 | -10/Subcaves | Core integrity fell below 20% 1429 | -10/Subcaves | Destroyed by 6R-EDU(R) with Subdweller Laser Last Messages --------------- 01349_ Acquired 23 matter. LOCATION=UNKNOWN AMBIENT_HEAT=-10 GOAL=ESCAPE 01381_ BS-MR2(c): "Thank the algorithms! I was beginning to lose hope I'd never make it past all the Subs lurking out here." 01384_ BS-MR2(c): "Hey, let me tag along and I can get us both out of this nasty situation. At least I think I can... The group I got separated from was talking about a shortcut back to the UFD." 01391_ WD-KQQ(R) knocked back. 01395_ EM Pulse Gun destroyed. 01397_ Critical hit (Destroy). 01397_ Lgt. Armor Plating destroyed. 01407_ Wheel destroyed. 01411_ Lgt. Cannon destroyed. 01413_ Wheel destroyed. 01417_ Lgt. Nuclear Core destroyed. Map ----- +----------------------------------------------------+ | ?????????????????????????????????????????????????? | | ?????????????????????????????????????????????????? | | ?????????????????????????????????????????????????? | | ?????????????????????????????????????????????????? | | ?????????????????????????????????????????????????? | | ?????????????????????????????????????????????????? | | ?????????????????????????????????????????????????? | | ?????????????????????????????????????????????????? | | ?????????????????????????????????????????????????? | | ?????????????????????????????????????????????????? | | ?????????????????????????????????????????????????? | | ?????????????????????????????????????????????????? | | ?????????????????????????????????????????????????? | | ?????????????????###????####?????????????????????? | | ????????????????## #??## ##????????????????????? | | ????????????????# #?# ##???????????????????? | | ???????????# #### ## #???????????????????? | | ??????????? #???????????????????? | | ?????????????????# #???????????????????? | | ?????????????????### #???????????????????? | | ???????????????????## c #???????????????????? | | ????????????????????# #???????????????????? | | ????????????????????# #???????????????????? | | ????????????????????# #???????????????????? | | ????????????????????## % ##??????????????????? | | ?????????????????????## @ #??????????????????? | | ??????????????????????# R #??????????????????? | | ??????????????????????#R ## #??????????????????? | | ?????????????????????" " #?##??????????????????? | | ???????????????????? """ #?????????????????????? | | ???????????????????## #?????????????????????? | | ????????????????????## ##?????????????????????? | | ?????????????????????# ##??????????????????????? | | ?????????????????????# ##???????????????????????? | | ????????????????????? ?????????????????????????? | | ????????????????????? ?????????????????????????? | | ???????????????????? ?????????????????????????? | | ????????????????????? ?????????????????????????? | | ????????????????????# ?????????????????????????? | | ????????????????????? ?????????????????????????? | | ?????????????????????????????????????????????????? | | ?????????????????????????????????????????????????? | | ?????????????????????????????????????????????????? | | ?????????????????????????????????????????????????? | | ?????????????????????????????????????????????????? | | ?????????????????????????????????????????????????? | | ?????????????????????????????????????????????????? | | ?????????????????????????????????????????????????? | | ?????????????????????????????????????????????????? | | ?????????????????????????????????????????????????? | +----------------------------------------------------+ Best States ------------- Heat Dissipation 39 Energy Generation 14 Energy Capacity 160 Matter Stores 300 Matter Capacity 300 Sight Range 16 Terrain Scan Density 10 Armor Coverage 150 Evasion (%) 55 Item Schematics ----------------- None Robot Schematics ------------------ None Fabricated ------------ Nothing Repaired ---------- Nothing Alien Tech Used ----------------- None Achievements -------------- None Challenges ------------ None Game ------ Seed AmuletScrapoidObliterator Manual? 0 Play Time 00:13:57 Cumulative 250.8 hours Start 2025.05.14 @ 12:16:01 End 2025.05.14 @ 12:29:39 Sessions 1 Manual Loads 0 Difficulty Rogue Special Mode None Game No. 372 Rogue 372 Adventurer 0 Explorer 0 Win Type - Total 1 Types 1/0/0/0/0/0/0/0/0/0 Lore% 59 Gallery% 61 Achievement% 43 Wizard Run 0 Options --------- Layout 1 ASCII 0 Keyboard 0 Movement Mouse Keybinds 0 Fullscreen 2 Font 24/Smallcaps Map View 50x35 Zoom Use 0% Tactical HUD 1 Map Filters NONE Filters NONE Steam 1 RUN: 5aadc499-6b11-4ff1-9e94-eff495e1291b